[Event "Titled Tuesday Blitz November 29 Late 2022"]
[White "Sivakumar, Shaaketh"]
[Black "Donchenko, Alexander"]
[WhiteFideId "30940176"]
[BlackFideId "24603295"]
[WhiteElo "2174"]
[BlackElo "2572"]
[Result "0-1"]
[Round "03"]
[TimeControl "180+1"]
[Date "2022.11.30"]
[WhiteClock "0:02:16"]
[BlackClock "0:02:31"]

1. e4 {[%clk 0:03:00]}  c6 {[%clk 0:02:59]} 2. Nf3 {[%clk 0:03:01]}  d5 {[%clk 0:03:00]} 3. exd5 {[%clk 0:03:00]}  cxd5 {[%clk 0:03:01]} 4. d4 {[%clk 0:03:01]}  Nc6 {[%clk 0:03:01]} 5. Bf4 {[%clk 0:03:02]}  Bg4 {[%clk 0:03:00]} 6. c3 {[%clk 0:03:02]}  e6 {[%clk 0:03:00]} 7. Nbd2 {[%clk 0:03:03]}  Bd6 {[%clk 0:03:00]} 8. Bxd6 {[%clk 0:03:02]}  Qxd6 {[%clk 0:03:01]} 9. Bd3 {[%clk 0:03:02]}  Nf6 {[%clk 0:03:02]} 10. O-O {[%clk 0:03:03]}  O-O {[%clk 0:03:02]} 11. h3 {[%clk 0:03:02]}  Bh5 {[%clk 0:03:02]} 12. Qc2 {[%clk 0:03:02]}  Bg6 {[%clk 0:03:01]} 13. Bxg6 {[%clk 0:03:01]}  hxg6 {[%clk 0:03:02]} 14. Qd3 {[%clk 0:03:01]}  Rab8 {[%clk 0:03:02]} 15. b3 {[%clk 0:03:00]}  b5 {[%clk 0:03:02]} 16. Rac1 {[%clk 0:03:00]}  Rfc8 {[%clk 0:03:01]} 17. Rfd1 {[%clk 0:03:00]}  Qa3 {[%clk 0:02:58]} 18. Rc2 {[%clk 0:02:57]}  a5 {[%clk 0:02:57]} 19. Nb1 {[%clk 0:02:57]}  Qe7 {[%clk 0:02:56]} 20. Ne5 {[%clk 0:02:48]}  Nxe5 {[%clk 0:02:54]} 21. dxe5 {[%clk 0:02:49]}  Ne4 {[%clk 0:02:55]} 22. Nd2 {[%clk 0:02:47]}  Nc5 {[%clk 0:02:54]} 23. Qd4 {[%clk 0:02:44]}  Qc7 {[%clk 0:02:52]} 24. Rdc1 {[%clk 0:02:43]}  Nd7 {[%clk 0:02:52]} 25. a4 {[%clk 0:02:39]}  Qxe5 {[%clk 0:02:49]} 26. Nf3 {[%clk 0:02:35]}  Qxd4 {[%clk 0:02:49]} 27. Nxd4 {[%clk 0:02:36]}  bxa4 {[%clk 0:02:48]} 28. bxa4 {[%clk 0:02:36]}  Rc4 {[%clk 0:02:49]} 29. Ra2 {[%clk 0:02:30]}  Rbc8 {[%clk 0:02:43]} 30. Nb5 {[%clk 0:02:28]}  R8c6 {[%clk 0:02:39]} 31. Rd1 {[%clk 0:02:23]}  Nc5 {[%clk 0:02:36]} 32. Nd4 {[%clk 0:02:21]}  Rc8 {[%clk 0:02:35]} 33. Nb5 {[%clk 0:02:19]}  Rxa4 {[%clk 0:02:34]} 34. Rxa4 {[%clk 0:02:19]}  Nxa4 {[%clk 0:02:35]} 35. Ra1 {[%clk 0:02:18]}  Nxc3 {[%clk 0:02:35]} 36. Rxa5 {[%clk 0:02:19]}  Nxb5 {[%clk 0:02:34]} 37. Rxb5 {[%clk 0:02:19]}  g5 {[%clk 0:02:34]} 38. g3 {[%clk 0:02:19]}  Kh7 {[%clk 0:02:34]} 39. Kg2 {[%clk 0:02:20]}  Kg6 {[%clk 0:02:34]} 40. Rb4 {[%clk 0:02:19]}  Rc3 {[%clk 0:02:34]} 41. Rd4 {[%clk 0:02:18]}  Kf6 {[%clk 0:02:35]} 42. Rd2 {[%clk 0:02:19]}  Ke5 {[%clk 0:02:34]} 43. Re2+ {[%clk 0:02:14]}  Kd6 {[%clk 0:02:34]} 44. h4 {[%clk 0:02:14]}  gxh4 {[%clk 0:02:34]} 45. gxh4 {[%clk 0:02:15]}  d4 {[%clk 0:02:34]} 46. Re4 {[%clk 0:02:15]}  e5 {[%clk 0:02:34]} 47. Rg4 {[%clk 0:02:16]}  g6 {[%clk 0:02:34]} 48. f3 {[%clk 0:02:14]}  Rc2+ {[%clk 0:02:33]} 49. Kf1 {[%clk 0:02:14]}  Rh2 {[%clk 0:02:32]} 50. Kg1 {[%clk 0:02:13]}  Ra2 {[%clk 0:02:32]} 51. Kf1 {[%clk 0:02:14]}  Ke6 {[%clk 0:02:32]} 52. Ke1 {[%clk 0:02:14]}  Kf5 {[%clk 0:02:32]} 53. Kd1 {[%clk 0:02:15]}  Rh2 {[%clk 0:02:31]} 54. Ke1 {[%clk 0:02:14]}  Ke6 {[%clk 0:02:30]} 55. Kf1 {[%clk 0:02:14]}  Kd5 {[%clk 0:02:30]} 56. Kg1 {[%clk 0:02:14]}  Ra2 {[%clk 0:02:30]} 57. Kf1 {[%clk 0:02:15]}  Kc4 {[%clk 0:02:30]} 58. Ke1 {[%clk 0:02:16]}  Kc3 {[%clk 0:02:30]} 59. Re4 {[%clk 0:02:16]}  d3 {[%clk 0:02:31]} 60. Rxe5 {[%clk 0:02:16]}  Ra1+ {[%clk 0:02:31]} 61. Kf2 {[%clk 0:02:16]}  d2 {[%clk 0:02:32]} 62. Rc5+ {[%clk 0:02:17]}  Kd4 {[%clk 0:02:32]} 63. Ra5 {[%clk 0:02:16]}  Rxa5 {[%clk 0:02:31]} 0-1


[Site "https://www.chess.com"]

[Event "Titled Tuesday Blitz November 29 Late 2022"]
[White "Tisaj, Domen"]
[Black "Bluebaum, Matthias"]
[WhiteFideId "14628708"]
[BlackFideId "24651516"]
[WhiteElo "2709"]
[BlackElo "2953"]
[Result "0-1"]
[Round "03"]
[TimeControl "180+1"]
[Date "2022.11.30"]
[WhiteClock "0:00:07"]
[BlackClock "0:00:47"]

1. e4 {[%clk 0:02:59]}  e6 {[%clk 0:03:00]} 2. d4 {[%clk 0:02:59]}  d5 {[%clk 0:03:00]} 3. Nc3 {[%clk 0:02:59]}  Nf6 {[%clk 0:03:00]} 4. Bg5 {[%clk 0:02:57]}  dxe4 {[%clk 0:03:00]} 5. Nxe4 {[%clk 0:02:57]}  Be7 {[%clk 0:03:01]} 6. Nxf6+ {[%clk 0:02:55]}  Bxf6 {[%clk 0:03:01]} 7. Bxf6 {[%clk 0:02:56]}  Qxf6 {[%clk 0:03:02]} 8. Nf3 {[%clk 0:02:56]}  O-O {[%clk 0:03:02]} 9. Bd3 {[%clk 0:02:55]}  c5 {[%clk 0:03:02]} 10. Qe2 {[%clk 0:02:51]}  cxd4 {[%clk 0:02:58]} 11. Qe4 {[%clk 0:02:41]}  g6 {[%clk 0:02:59]} 12. Qxd4 {[%clk 0:02:37]}  Qxd4 {[%clk 0:02:57]} 13. Nxd4 {[%clk 0:02:37]}  e5 {[%clk 0:02:58]} 14. Nb3 {[%clk 0:02:32]}  Nc6 {[%clk 0:02:57]} 15. c3 {[%clk 0:02:25]}  b6 {[%clk 0:02:50]} 16. Be4 {[%clk 0:02:23]}  Bb7 {[%clk 0:02:48]} 17. O-O-O {[%clk 0:02:23]}  Rad8 {[%clk 0:02:47]} 18. Rxd8 {[%clk 0:02:19]}  Rxd8 {[%clk 0:02:48]} 19. Rd1 {[%clk 0:02:20]}  Rxd1+ {[%clk 0:02:47]} 20. Kxd1 {[%clk 0:02:20]}  f5 {[%clk 0:02:45]} 21. Bd5+ {[%clk 0:02:20]}  Kf8 {[%clk 0:02:46]} 22. Kd2 {[%clk 0:02:17]}  Ke7 {[%clk 0:02:45]} 23. f3 {[%clk 0:02:05]}  Kd6 {[%clk 0:02:44]} 24. Bg8 {[%clk 0:02:04]}  Ne7 {[%clk 0:02:36]} 25. Bf7 {[%clk 0:01:55]}  f4 {[%clk 0:02:30]} 26. Ke2 {[%clk 0:01:43]}  Nf5 {[%clk 0:02:09]} 27. Nd2 {[%clk 0:01:43]}  Ke7 {[%clk 0:02:09]} 28. Bg8 {[%clk 0:01:40]}  h6 {[%clk 0:02:01]} 29. Bc4 {[%clk 0:01:19]}  Nd6 {[%clk 0:01:48]} 30. Bd3 {[%clk 0:01:17]}  g5 {[%clk 0:01:47]} 31. b4 {[%clk 0:01:10]}  Ke6 {[%clk 0:01:46]} 32. a4 {[%clk 0:01:09]}  h5 {[%clk 0:01:45]} 33. h3 {[%clk 0:01:03]}  Bc6 {[%clk 0:01:38]} 34. Bc2 {[%clk 0:00:46]}  Kf6 {[%clk 0:01:32]} 35. Kd3 {[%clk 0:00:40]}  Nf5 {[%clk 0:01:29]} 36. Nf1 {[%clk 0:00:40]}  Nh4 {[%clk 0:01:27]} 37. b5 {[%clk 0:00:22]}  Bb7 {[%clk 0:00:53]} 38. a5 {[%clk 0:00:17]}  Nxg2 {[%clk 0:00:53]} 39. Ke2 {[%clk 0:00:18]}  Bxf3+ {[%clk 0:00:48]} 40. Kxf3 {[%clk 0:00:16]}  Ne1+ {[%clk 0:00:49]} 41. Ke4 {[%clk 0:00:16]}  Nxc2 {[%clk 0:00:50]} 42. a6 {[%clk 0:00:13]}  g4 {[%clk 0:00:49]} 43. c4 {[%clk 0:00:08]}  Na3 {[%clk 0:00:46]} 44. c5 {[%clk 0:00:08]}  Nxb5 {[%clk 0:00:47]} 45. cxb6 {[%clk 0:00:07]}  axb6 {[%clk 0:00:48]} 46. Kd5 {[%clk 0:00:07]}  Nc7+ {[%clk 0:00:47]} 0-1


[Site "https://www.chess.com"]

[Event "Titled Tuesday Blitz November 29 Late 2022"]
[White "Ward, Ieuan C"]
[Black "Girsh, Daniel"]
[WhiteFideId "406627"]
[BlackFideId "30949190"]
[WhiteElo "2294"]
[BlackElo "2075"]
[Result "0-1"]
[Round "03"]
[TimeControl "180+1"]
[Date "2022.11.30"]
[WhiteClock "0:00:06"]
[BlackClock "0:00:11"]

1. d4 {[%clk 0:03:00]}  Nf6 {[%clk 0:02:58]} 2. c4 {[%clk 0:03:00]}  e6 {[%clk 0:02:57]} 3. Nf3 {[%clk 0:03:00]}  d5 {[%clk 0:02:57]} 4. Nc3 {[%clk 0:02:59]}  Ne4 {[%clk 0:02:50]} 5. Bf4 {[%clk 0:02:50]}  Bb4 {[%clk 0:02:48]} 6. Rc1 {[%clk 0:02:46]}  O-O {[%clk 0:02:46]} 7. cxd5 {[%clk 0:02:42]}  exd5 {[%clk 0:02:42]} 8. Qb3 {[%clk 0:02:35]}  Nc6 {[%clk 0:02:40]} 9. e3 {[%clk 0:02:29]}  g5 {[%clk 0:02:36]} 10. Bg3 {[%clk 0:02:27]}  h5 {[%clk 0:02:35]} 11. h4 {[%clk 0:02:23]}  g4 {[%clk 0:02:33]} 12. Ne5 {[%clk 0:02:18]}  Nxg3 {[%clk 0:02:32]} 13. Nxc6 {[%clk 0:02:17]}  bxc6 {[%clk 0:02:30]} 14. fxg3 {[%clk 0:02:15]}  Bd6 {[%clk 0:02:28]} 15. Ne2 {[%clk 0:02:02]}  Re8 {[%clk 0:02:26]} 16. Nf4 {[%clk 0:02:01]}  Qf6 {[%clk 0:02:14]} 17. Be2 {[%clk 0:01:56]}  Bf5 {[%clk 0:01:55]} 18. O-O {[%clk 0:01:55]}  Rab8 {[%clk 0:01:52]} 19. Qc3 {[%clk 0:01:53]}  Qh6 {[%clk 0:01:40]} 20. a3 {[%clk 0:01:47]}  Bd7 {[%clk 0:01:30]} 21. b4 {[%clk 0:01:45]}  Re7 {[%clk 0:01:29]} 22. Ba6 {[%clk 0:01:27]}  Rbe8 {[%clk 0:01:27]} 23. Rce1 {[%clk 0:01:27]}  Re4 {[%clk 0:01:21]} 24. Bb7 {[%clk 0:01:24]}  Rb8 {[%clk 0:01:07]} 25. Bxc6 {[%clk 0:01:19]}  Bxc6 {[%clk 0:01:05]} 26. Qxc6 {[%clk 0:01:17]}  Bxf4 {[%clk 0:01:06]} 27. Qxd5 {[%clk 0:01:17]}  Bxe3+ {[%clk 0:01:06]} 28. Kh2 {[%clk 0:01:12]}  Re6 {[%clk 0:01:01]} 29. Rf5 {[%clk 0:00:57]}  Bd2 {[%clk 0:00:20]} 30. Ref1 {[%clk 0:00:31]}  Qg6 {[%clk 0:00:17]} 31. Qd7 {[%clk 0:00:21]}  Rf8 {[%clk 0:00:16]} 32. Qxc7 {[%clk 0:00:19]}  Re2 {[%clk 0:00:15]} 33. R5f2 {[%clk 0:00:16]}  Rxf2 {[%clk 0:00:15]} 34. Rxf2 {[%clk 0:00:17]}  Be3 {[%clk 0:00:15]} 35. Re2 {[%clk 0:00:16]}  Bxd4 {[%clk 0:00:15]} 36. Qc4 {[%clk 0:00:14]}  Qd6 {[%clk 0:00:14]} 37. Rd2 {[%clk 0:00:13]}  Bg1+ {[%clk 0:00:13]} 38. Kxg1 {[%clk 0:00:12]}  Qxd2 {[%clk 0:00:14]} 39. Qc5 {[%clk 0:00:11]}  Qh6 {[%clk 0:00:14]} 40. Qxa7 {[%clk 0:00:10]}  Qg6 {[%clk 0:00:15]} 41. Qc5 {[%clk 0:00:11]}  Re8 {[%clk 0:00:15]} 42. Qc3 {[%clk 0:00:08]}  Qe4 {[%clk 0:00:14]} 43. Kh2 {[%clk 0:00:07]}  Qe3 {[%clk 0:00:13]} 44. Qc2 {[%clk 0:00:06]}  Qe4 {[%clk 0:00:12]} 45. Qc6 {[%clk 0:00:06]}  Qxc6 {[%clk 0:00:11]} 0-1


[Site "https://www.chess.com"]

[Event "Titled Tuesday Blitz November 29 Late 2022"]
[White "Wieczorek, Oskar"]
[Black "Rubio Tent, Francisco"]
[WhiteFideId "1133950"]
[BlackFideId "2238233"]
[WhiteElo "2404"]
[BlackElo "2211"]
[Result "1-0"]
[Round "03"]
[TimeControl "180+1"]
[Date "2022.11.30"]
[WhiteClock "0:01:00"]
[BlackClock "0:01:51"]

1. e4 {[%clk 0:03:00]}  c6 {[%clk 0:02:59]} 2. d4 {[%clk 0:03:00]}  d5 {[%clk 0:03:00]} 3. Nd2 {[%clk 0:03:01]}  dxe4 {[%clk 0:03:01]} 4. Nxe4 {[%clk 0:03:01]}  Bf5 {[%clk 0:03:01]} 5. Ng3 {[%clk 0:03:01]}  Bg6 {[%clk 0:03:01]} 6. c3 {[%clk 0:03:02]}  Nd7 {[%clk 0:03:00]} 7. Nh3 {[%clk 0:02:59]}  Ngf6 {[%clk 0:02:59]} 8. Bc4 {[%clk 0:02:57]}  e6 {[%clk 0:02:58]} 9. Nf4 {[%clk 0:02:56]}  Nd5 {[%clk 0:02:58]} 10. Nfh5 {[%clk 0:02:52]}  N7f6 {[%clk 0:02:53]} 11. Bg5 {[%clk 0:02:13]}  Qb6 {[%clk 0:02:28]} 12. Bb3 {[%clk 0:01:40]}  Nxh5 {[%clk 0:02:14]} 13. Nxh5 {[%clk 0:01:41]}  a5 {[%clk 0:02:14]} 14. O-O {[%clk 0:01:36]}  a4 {[%clk 0:02:11]} 15. Bxd5 {[%clk 0:01:33]}  cxd5 {[%clk 0:02:09]} 16. b3 {[%clk 0:01:27]}  axb3 {[%clk 0:01:51]} 17. axb3 {[%clk 0:00:59]}  Rxa1 {[%clk 0:01:51]} 18. Qxa1 {[%clk 0:01:00]}  Bxh5 {[%clk 0:01:51]} 19. Qa4+ {[%clk 0:01:00]} 1-0


[Site "https://www.chess.com"]

[Event "Titled Tuesday Blitz November 29 Late 2022"]
[White "Wieczorek, Zbigniew"]
[Black "Boruchovsky, Avital"]
[WhiteFideId "1102001"]
[BlackFideId "2800055"]
[WhiteElo "2322"]
[BlackElo "2820"]
[Result "0-1"]
[Round "03"]
[TimeControl "180+1"]
[Date "2022.11.30"]
[WhiteClock "0:00:04"]
[BlackClock "0:01:00"]

1. Nf3 {[%clk 0:03:00]}  d5 {[%clk 0:02:57]} 2. g3 {[%clk 0:03:00]}  Nd7 {[%clk 0:02:56]} 3. d4 {[%clk 0:02:59]}  Nb6 {[%clk 0:02:56]} 4. Bg2 {[%clk 0:02:55]}  Bf5 {[%clk 0:02:56]} 5. Nbd2 {[%clk 0:02:49]}  Nf6 {[%clk 0:02:55]} 6. c3 {[%clk 0:02:43]}  h6 {[%clk 0:02:53]} 7. a4 {[%clk 0:02:42]}  a5 {[%clk 0:02:52]} 8. O-O {[%clk 0:02:36]}  e6 {[%clk 0:02:51]} 9. Re1 {[%clk 0:02:01]}  Be7 {[%clk 0:02:49]} 10. Ne5 {[%clk 0:01:54]}  O-O {[%clk 0:02:37]} 11. e4 {[%clk 0:01:53]}  dxe4 {[%clk 0:02:37]} 12. Nxe4 {[%clk 0:01:54]}  Nxe4 {[%clk 0:02:37]} 13. Bxe4 {[%clk 0:01:55]}  Bxe4 {[%clk 0:02:38]} 14. Rxe4 {[%clk 0:01:56]}  Nd7 {[%clk 0:02:31]} 15. Nxd7 {[%clk 0:01:46]}  Qxd7 {[%clk 0:02:32]} 16. Qe2 {[%clk 0:01:46]}  Ra6 {[%clk 0:02:09]} 17. Re5 {[%clk 0:01:19]}  Bf6 {[%clk 0:02:06]} 18. Rb5 {[%clk 0:01:18]}  Qc6 {[%clk 0:01:36]} 19. Be3 {[%clk 0:00:59]}  Rd8 {[%clk 0:01:28]} 20. Re1 {[%clk 0:00:55]}  Raa8 {[%clk 0:01:27]} 21. Qc2 {[%clk 0:00:38]}  Rd5 {[%clk 0:01:24]} 22. Qb3 {[%clk 0:00:15]}  Rxb5 {[%clk 0:01:24]} 23. axb5 {[%clk 0:00:14]}  Qf3 {[%clk 0:01:22]} 24. Qc4 {[%clk 0:00:10]}  Rc8 {[%clk 0:01:15]} 25. Qe2 {[%clk 0:00:09]}  Qf5 {[%clk 0:01:06]} 26. Ra1 {[%clk 0:00:06]}  b6 {[%clk 0:01:05]} 27. Qc4 {[%clk 0:00:04]}  Be7 {[%clk 0:01:00]} 0-1


[Site "https://www.chess.com"]

[Event "Titled Tuesday Blitz November 29 Late 2022"]
[White "Winkels, Marcel"]
[Black "Vasques, Antonio Pedro Freixial"]
[WhiteFideId "1003887"]
[BlackFideId "1908332"]
[WhiteElo "1900"]
[BlackElo "2243"]
[Result "0-1"]
[Round "03"]
[TimeControl "180+1"]
[Date "2022.11.30"]
[WhiteClock "0:02:06"]
[BlackClock "0:02:25"]

1. d4 {[%clk 0:03:00]}  Nf6 {[%clk 0:02:57]} 2. Bf4 {[%clk 0:03:01]}  g6 {[%clk 0:02:57]} 3. Nc3 {[%clk 0:03:00]}  d5 {[%clk 0:02:56]} 4. e3 {[%clk 0:02:55]}  Bg7 {[%clk 0:02:56]} 5. h4 {[%clk 0:02:54]}  h6 {[%clk 0:02:54]} 6. Nf3 {[%clk 0:02:49]}  O-O {[%clk 0:02:52]} 7. Bd3 {[%clk 0:02:44]}  Bg4 {[%clk 0:02:51]} 8. Qd2 {[%clk 0:02:41]}  c5 {[%clk 0:02:50]} 9. Ne5 {[%clk 0:02:40]}  Nc6 {[%clk 0:02:45]} 10. Nxg4 {[%clk 0:02:36]}  Nxg4 {[%clk 0:02:46]} 11. O-O-O {[%clk 0:02:30]}  c4 {[%clk 0:02:46]} 12. Bf1 {[%clk 0:02:29]}  b5 {[%clk 0:02:44]} 13. f3 {[%clk 0:02:25]}  Nf6 {[%clk 0:02:42]} 14. e4 {[%clk 0:02:24]}  b4 {[%clk 0:02:42]} 15. Nxd5 {[%clk 0:02:23]}  Nxd5 {[%clk 0:02:41]} 16. exd5 {[%clk 0:02:23]}  Qxd5 {[%clk 0:02:42]} 17. Bxh6 {[%clk 0:02:23]}  c3 {[%clk 0:02:33]} 18. bxc3 {[%clk 0:02:06]}  Qxa2 {[%clk 0:02:25]} 0-1


[Site "https://www.chess.com"]

[Event "Titled Tuesday Blitz November 29 Late 2022"]
[White "chess50years"]
[Black "Salman, Pavel"]
[BlackFideId "24153753"]
[WhiteElo "2146"]
[BlackElo "2187"]
[Result "0-1"]
[Round "03"]
[TimeControl "180+1"]
[Date "2022.11.30"]
[WhiteClock "0:00:11"]
[BlackClock "0:00:09"]

1. d4 {[%clk 0:03:00]}  Nf6 {[%clk 0:02:59]} 2. c4 {[%clk 0:03:00]}  c5 {[%clk 0:03:00]} 3. d5 {[%clk 0:02:59]}  b5 {[%clk 0:03:00]} 4. Nd2 {[%clk 0:02:57]}  bxc4 {[%clk 0:02:59]} 5. e4 {[%clk 0:02:56]}  c3 {[%clk 0:02:59]} 6. bxc3 {[%clk 0:02:57]}  d6 {[%clk 0:03:00]} 7. Bb5+ {[%clk 0:02:54]}  Bd7 {[%clk 0:02:59]} 8. a4 {[%clk 0:02:54]}  g6 {[%clk 0:02:58]} 9. Ngf3 {[%clk 0:02:53]}  Bg7 {[%clk 0:02:59]} 10. O-O {[%clk 0:02:53]}  O-O {[%clk 0:02:59]} 11. Bxd7 {[%clk 0:02:53]}  Nbxd7 {[%clk 0:02:59]} 12. h3 {[%clk 0:02:53]}  Rb8 {[%clk 0:02:56]} 13. Qc2 {[%clk 0:02:50]}  e6 {[%clk 0:02:46]} 14. dxe6 {[%clk 0:02:43]}  fxe6 {[%clk 0:02:47]} 15. e5 {[%clk 0:02:35]}  dxe5 {[%clk 0:02:37]} 16. Ng5 {[%clk 0:02:34]}  Qe7 {[%clk 0:02:32]} 17. Nge4 {[%clk 0:02:26]}  Nd5 {[%clk 0:02:24]} 18. Ba3 {[%clk 0:02:25]}  Kh8 {[%clk 0:02:11]} 19. Rab1 {[%clk 0:02:22]}  Nf4 {[%clk 0:02:01]} 20. Rxb8 {[%clk 0:02:16]}  Rxb8 {[%clk 0:02:02]} 21. Rb1 {[%clk 0:02:09]}  Rf8 {[%clk 0:01:11]} 22. Rb7 {[%clk 0:02:06]}  Rf7 {[%clk 0:00:42]} 23. Qd1 {[%clk 0:01:52]}  Qh4 {[%clk 0:00:40]} 24. Qg4 {[%clk 0:01:49]}  Qxg4 {[%clk 0:00:37]} 25. hxg4 {[%clk 0:01:50]}  Bh6 {[%clk 0:00:31]} 26. Nc4 {[%clk 0:01:37]}  Ne2+ {[%clk 0:00:30]} 27. Kf1 {[%clk 0:01:35]}  Nf4 {[%clk 0:00:10]} 28. Nxc5 {[%clk 0:01:28]}  Nxc5 {[%clk 0:00:08]} 29. Rxf7 {[%clk 0:01:26]}  Nxa4 {[%clk 0:00:08]} 30. Nxe5 {[%clk 0:01:17]}  Nxc3 {[%clk 0:00:08]} 31. Rxa7 {[%clk 0:01:13]}  g5 {[%clk 0:00:08]} 32. Nf7+ {[%clk 0:01:12]}  Kg7 {[%clk 0:00:08]} 33. Nxg5+ {[%clk 0:01:05]}  Kg6 {[%clk 0:00:08]} 34. Ne4 {[%clk 0:01:05]}  Ncd5 {[%clk 0:00:08]} 35. Bb2 {[%clk 0:00:58]}  Nd3 {[%clk 0:00:07]} 36. Bd4 {[%clk 0:00:53]}  e5 {[%clk 0:00:06]} 37. g5 {[%clk 0:00:52]}  exd4 {[%clk 0:00:06]} 38. gxh6 {[%clk 0:00:51]}  Kxh6 {[%clk 0:00:06]} 39. Rd7 {[%clk 0:00:46]}  N3b4 {[%clk 0:00:06]} 40. Nd2 {[%clk 0:00:44]}  Kg6 {[%clk 0:00:06]} 41. g3 {[%clk 0:00:44]}  Kf5 {[%clk 0:00:06]} 42. Rxh7 {[%clk 0:00:43]}  d3 {[%clk 0:00:06]} 43. Rh4 {[%clk 0:00:40]}  Ke5 {[%clk 0:00:06]} 44. Kg2 {[%clk 0:00:40]}  Nc2 {[%clk 0:00:05]} 45. Re4+ {[%clk 0:00:37]}  Kf5 {[%clk 0:00:05]} 46. Ra4 {[%clk 0:00:31]}  Nc3 {[%clk 0:00:05]} 47. Rc4 {[%clk 0:00:27]}  Nd5 {[%clk 0:00:04]} 48. Rc5 {[%clk 0:00:21]}  Ke6 {[%clk 0:00:04]} 49. Rxd5 {[%clk 0:00:22]}  Kxd5 {[%clk 0:00:04]} 50. Kf3 {[%clk 0:00:23]}  Kd4 {[%clk 0:00:05]} 51. g4 {[%clk 0:00:22]}  Kc3 {[%clk 0:00:05]} 52. Ne4+ {[%clk 0:00:20]}  Kd4 {[%clk 0:00:05]} 53. Nd2 {[%clk 0:00:17]}  Ne1+ {[%clk 0:00:06]} 54. Kf4 {[%clk 0:00:15]}  Ng2+ {[%clk 0:00:06]} 55. Kf5 {[%clk 0:00:12]}  Kc3 {[%clk 0:00:06]} 56. Nf3 {[%clk 0:00:11]}  Nh4+ {[%clk 0:00:05]} 57. Kf6 {[%clk 0:00:10]}  Nxf3 {[%clk 0:00:05]} 58. g5 {[%clk 0:00:08]}  Nxg5 {[%clk 0:00:05]} 59. Kxg5 {[%clk 0:00:08]}  d2 {[%clk 0:00:06]} 60. f4 {[%clk 0:00:09]}  d1=Q {[%clk 0:00:07]} 61. f5 {[%clk 0:00:10]}  Qd8+ {[%clk 0:00:07]} 62. f6 {[%clk 0:00:11]}  Qf8 {[%clk 0:00:08]} 63. Kg6 {[%clk 0:00:11]}  Kd4 {[%clk 0:00:09]} 0-1


[Site "https://www.chess.com"]

[Event "Titled Tuesday Blitz November 29 Late 2022"]
[White "Abrahamyan, Tatev"]
[Black "Quesada Perez, Yuniesky"]
[WhiteFideId "13301918"]
[BlackFideId "3504409"]
[WhiteElo "2347"]
[BlackElo "2599"]
[Result "0-1"]
[Round "04"]
[TimeControl "180+1"]
[Date "2022.11.30"]
[WhiteClock "0:00:37"]
[BlackClock "0:00:47"]

1. e4 {[%clk 0:02:49]}  d5 {[%clk 0:02:56]} 2. exd5 {[%clk 0:02:49]}  Qxd5 {[%clk 0:02:57]} 3. Nc3 {[%clk 0:02:49]}  Qa5 {[%clk 0:02:57]} 4. d4 {[%clk 0:02:50]}  Nf6 {[%clk 0:02:57]} 5. Nf3 {[%clk 0:02:50]}  Bf5 {[%clk 0:02:57]} 6. Bc4 {[%clk 0:02:50]}  e6 {[%clk 0:02:58]} 7. Bd2 {[%clk 0:02:49]}  Bb4 {[%clk 0:02:57]} 8. a3 {[%clk 0:02:47]}  Bxc3 {[%clk 0:02:57]} 9. Bxc3 {[%clk 0:02:47]}  Qb6 {[%clk 0:02:58]} 10. Qe2 {[%clk 0:02:42]}  O-O {[%clk 0:02:52]} 11. Ne5 {[%clk 0:02:41]}  Nc6 {[%clk 0:02:47]} 12. O-O-O {[%clk 0:02:39]}  Nd5 {[%clk 0:02:25]} 13. Bxd5 {[%clk 0:02:35]}  exd5 {[%clk 0:02:26]} 14. g4 {[%clk 0:02:35]}  Be6 {[%clk 0:02:21]} 15. f4 {[%clk 0:02:34]}  f6 {[%clk 0:02:08]} 16. Nc4 {[%clk 0:02:00]}  Bxg4 {[%clk 0:02:06]} 17. Qxg4 {[%clk 0:02:00]}  dxc4 {[%clk 0:02:07]} 18. Rhg1 {[%clk 0:01:51]}  Rf7 {[%clk 0:02:06]} 19. d5 {[%clk 0:01:48]}  Ne7 {[%clk 0:02:06]} 20. d6 {[%clk 0:01:42]}  Ng6 {[%clk 0:01:48]} 21. d7 {[%clk 0:01:30]}  Rd8 {[%clk 0:01:47]} 22. Rge1 {[%clk 0:01:28]}  Qc6 {[%clk 0:01:32]} 23. f5 {[%clk 0:00:57]}  Nf8 {[%clk 0:01:20]} 24. Re6 {[%clk 0:00:44]}  Rfxd7 {[%clk 0:01:13]} 25. Rg1 {[%clk 0:00:43]}  Qc5 {[%clk 0:00:48]} 26. Rxf6 {[%clk 0:00:37]}  Qe3+ {[%clk 0:00:47]} 0-1


[Site "https://www.chess.com"]

[Event "Titled Tuesday Blitz November 29 Late 2022"]
[White "Aggelis, Nikolaos"]
[Black "Seletsky, Grigory"]
[WhiteFideId "4213220"]
[BlackFideId "14112191"]
[WhiteElo "2189"]
[BlackElo "2492"]
[Result "1-0"]
[Round "04"]
[TimeControl "180+1"]
[Date "2022.11.30"]
[WhiteClock "0:00:55"]
[BlackClock "0:00:39"]

1. d4 {[%clk 0:03:00]}  Nf6 {[%clk 0:02:51]} 2. c4 {[%clk 0:03:00]}  d6 {[%clk 0:02:50]} 3. Nf3 {[%clk 0:02:57]}  Nbd7 {[%clk 0:02:50]} 4. g3 {[%clk 0:02:57]}  e5 {[%clk 0:02:50]} 5. Bg2 {[%clk 0:02:58]}  Be7 {[%clk 0:02:51]} 6. dxe5 {[%clk 0:02:54]}  Nxe5 {[%clk 0:02:48]} 7. O-O {[%clk 0:02:55]}  O-O {[%clk 0:02:47]} 8. b3 {[%clk 0:02:53]}  c6 {[%clk 0:02:40]} 9. Bb2 {[%clk 0:02:52]}  Qc7 {[%clk 0:02:39]} 10. Nc3 {[%clk 0:02:50]}  Re8 {[%clk 0:02:38]} 11. Qd2 {[%clk 0:02:46]}  Bg4 {[%clk 0:02:34]} 12. h3 {[%clk 0:02:30]}  Nxf3+ {[%clk 0:02:31]} 13. exf3 {[%clk 0:02:31]}  Bd7 {[%clk 0:02:22]} 14. Rad1 {[%clk 0:02:30]}  Rad8 {[%clk 0:02:22]} 15. Rfe1 {[%clk 0:02:25]}  Bf5 {[%clk 0:02:20]} 16. Qf4 {[%clk 0:02:16]}  Bg6 {[%clk 0:02:18]} 17. Qd4 {[%clk 0:02:06]}  a5 {[%clk 0:02:15]} 18. Ne4 {[%clk 0:02:04]}  d5 {[%clk 0:02:06]} 19. cxd5 {[%clk 0:01:57]}  cxd5 {[%clk 0:02:02]} 20. Nc3 {[%clk 0:01:47]}  Bc5 {[%clk 0:01:54]} 21. Rxe8+ {[%clk 0:01:27]}  Rxe8 {[%clk 0:01:28]} 22. Nxd5 {[%clk 0:01:23]}  Bxd4 {[%clk 0:01:26]} 23. Nxc7 {[%clk 0:01:22]}  Bxb2 {[%clk 0:01:26]} 24. Nxe8 {[%clk 0:01:21]}  Nxe8 {[%clk 0:01:25]} 25. Rd8 {[%clk 0:01:22]}  Kf8 {[%clk 0:01:22]} 26. f4 {[%clk 0:01:21]}  b6 {[%clk 0:01:18]} 27. f5 {[%clk 0:01:05]}  Bxf5 {[%clk 0:00:55]} 28. Bc6 {[%clk 0:01:03]}  Ke7 {[%clk 0:00:43]} 29. Rxe8+ {[%clk 0:01:01]}  Kd6 {[%clk 0:00:43]} 30. Bg2 {[%clk 0:01:00]}  Bb1 {[%clk 0:00:42]} 31. a4 {[%clk 0:00:58]}  Bd4 {[%clk 0:00:39]} 32. Rd8+ {[%clk 0:00:55]} 1-0


[Site "https://www.chess.com"]